[Event "*** Titled Tuesday Blitz"]
[Site "Chess.com"]
[Date "2020.11.24"]
[Round "8"]
[White "DenisQ"]
[Black "Gogolev_Artemy"]
[Result "1-0"]
[WhiteElo "2681"]
[BlackElo "2482"]
[TimeControl "180+1"]
[EndTime "11:45:31 PST"]
[Termination "DenisQ won by resignation"]

1. Nf3 {[%clk 0:03:00.9]} 1... Nf6 {[%clk 0:02:55.1]} 2. c4 {[%clk 0:03:00]}
2... c5 {[%clk 0:02:40.1]} 3. Nc3 {[%clk 0:02:59.3]} 3... Nc6 {[%clk 0:02:37.4]}
4. g3 {[%clk 0:02:56.1]} 4... d5 {[%clk 0:02:34.9]} 5. d4 {[%clk 0:02:55.4]}
5... cxd4 {[%clk 0:02:25.8]} 6. Nxd4 {[%clk 0:02:54.6]} 6... e6 {[%clk
0:02:18.5]} 7. Bg2 {[%clk 0:02:49]} 7... Be7 {[%clk 0:02:13.6]} 8. O-O {[%clk
0:02:47.8]} 8... O-O {[%clk 0:02:13]} 9. cxd5 {[%clk 0:02:47.8]} 9... Nxd5
{[%clk 0:02:00.6]} 10. Nxd5 {[%clk 0:02:46]} 10... exd5 {[%clk 0:02:01.5]} 11.
Be3 {[%clk 0:02:44.7]} 11... Nxd4 {[%clk 0:01:58.3]} 12. Bxd4 {[%clk 0:02:43.7]}
12... Be6 {[%clk 0:01:57.7]} 13. Rc1 {[%clk 0:02:43.4]} 13... Qa5 {[%clk
0:01:56.4]} 14. Qb3 {[%clk 0:02:40.7]} 14... Qa6 {[%clk 0:01:46.3]} 15. Bxd5
{[%clk 0:02:27.3]} 15... Bxd5 {[%clk 0:01:37.9]} 16. Qxd5 {[%clk 0:02:28.2]}
16... Rad8 {[%clk 0:01:29.1]} 17. Qc4 {[%clk 0:02:25.5]} 17... b5 {[%clk
0:01:19.4]} 18. Qc3 {[%clk 0:02:21]} 18... f6 {[%clk 0:01:15.8]} 19. Qb3+ {[%clk
0:02:12.8]} 19... Kh8 {[%clk 0:01:13.8]} 20. Rfd1 {[%clk 0:02:12.7]} 20... Rfe8
{[%clk 0:01:08.5]} 21. a3 {[%clk 0:02:08.1]} 21... Bd6 {[%clk 0:01:05]} 22. e3
{[%clk 0:02:05.6]} 22... Be5 {[%clk 0:01:04.1]} 23. Bxe5 {[%clk 0:02:03.3]}
23... fxe5 {[%clk 0:01:05]} 24. Rxd8 {[%clk 0:01:51.6]} 24... Rxd8 {[%clk
0:01:05.9]} 25. Rc5 {[%clk 0:01:51.2]} 25... e4 {[%clk 0:01:00]} 26. Rxb5 {[%clk
0:01:44.8]} 26... h6 {[%clk 0:00:57.8]} 27. Rb8 {[%clk 0:01:44.2]} 27... Rxb8
{[%clk 0:00:53]} 28. Qxb8+ {[%clk 0:01:45.1]} 28... Kh7 {[%clk 0:00:53.4]} 29.
Qe5 {[%clk 0:01:44.2]} 29... Qd3 {[%clk 0:00:50.1]} 30. Kg2 {[%clk 0:01:36.6]}
30... Kg6 {[%clk 0:00:42.6]} 31. h4 {[%clk 0:01:35.4]} 31... Kh7 {[%clk
0:00:39.7]} 32. h5 {[%clk 0:01:35.1]} 32... a6 {[%clk 0:00:35.9]} 33. a4 {[%clk
0:01:30.1]} 33... Kg8 {[%clk 0:00:31.7]} 34. b4 {[%clk 0:01:28.6]} 34... Qc4
{[%clk 0:00:27.7]} 35. b5 {[%clk 0:01:14.7]} 35... Qxa4 {[%clk 0:00:26.6]} 36.
Qe6+ {[%clk 0:01:14.6]} 36... Kh7 {[%clk 0:00:24.3]} 37. bxa6 {[%clk 0:01:12.3]}
37... Kh8 {[%clk 0:00:15]} 38. Qc8+ {[%clk 0:01:10]} 38... Kh7 {[%clk
0:00:14.5]} 39. Qb7 {[%clk 0:01:10.5]} 39... Qa5 {[%clk 0:00:09.9]} 40. Qxe4+
{[%clk 0:01:05.4]} 40... Kh8 {[%clk 0:00:09.4]} 41. Qa8+ {[%clk 0:01:02.7]}
41... Kh7 {[%clk 0:00:08.8]} 42. a7 {[%clk 0:01:03.2]} 42... Qf5 {[%clk
0:00:07.3]} 43. Qf3 {[%clk 0:01:01.8]} 1-0

[Event "*** Titled Tuesday Blitz"]
[Site "Chess.com"]
[Date "2020.11.24"]
[Round "8"]
[White "Grieve72"]
[Black "sergeikim"]
[Result "1-0"]
[WhiteElo "2427"]
[BlackElo "2519"]
[TimeControl "180+1"]
[EndTime "11:45:32 PST"]
[Termination "Grieve72 won by resignation"]

1. d4 {[%clk 0:03:00.8]} 1... Nf6 {[%clk 0:02:59.7]} 2. Bg5 {[%clk 0:03:00.5]}
2... g6 {[%clk 0:02:59.4]} 3. Bxf6 {[%clk 0:03:00.5]} 3... exf6 {[%clk
0:02:59.5]} 4. e3 {[%clk 0:03:01.2]} 4... h5 {[%clk 0:02:58.8]} 5. c4 {[%clk
0:02:55.6]} 5... h4 {[%clk 0:02:58]} 6. Nc3 {[%clk 0:02:54.7]} 6... d6 {[%clk
0:02:58.1]} 7. Bd3 {[%clk 0:02:37.5]} 7... f5 {[%clk 0:02:56.4]} 8. Nge2 {[%clk
0:02:28.5]} 8... Nd7 {[%clk 0:02:51.5]} 9. b4 {[%clk 0:02:26.9]} 9... c6 {[%clk
0:02:47.9]} 10. a4 {[%clk 0:02:25.6]} 10... Nf6 {[%clk 0:02:46.6]} 11. b5 {[%clk
0:02:25.1]} 11... Bh6 {[%clk 0:02:39.6]} 12. a5 {[%clk 0:02:18.8]} 12... a6
{[%clk 0:02:38.9]} 13. bxc6 {[%clk 0:02:18.2]} 13... bxc6 {[%clk 0:02:38.4]} 14.
Qa4 {[%clk 0:01:43.1]} 14... Bd7 {[%clk 0:02:36.6]} 15. Qa3 {[%clk 0:01:43.3]}
15... Qe7 {[%clk 0:01:54]} 16. Na4 {[%clk 0:01:12.9]} 16... h3 {[%clk
0:01:51.6]} 17. g3 {[%clk 0:00:45.4]} 17... O-O {[%clk 0:01:47.1]} 18. Nb6
{[%clk 0:00:41.1]} 18... Ra7 {[%clk 0:01:47.1]} 19. Nf4 {[%clk 0:00:39.8]} 19...
Bxf4 {[%clk 0:01:41.2]} 20. gxf4 {[%clk 0:00:39.4]} 20... c5 {[%clk 0:01:15.5]}
21. d5 {[%clk 0:00:36.1]} 21... Be8 {[%clk 0:01:01.6]} 22. Qb2 {[%clk
0:00:32.5]} 22... Rb7 {[%clk 0:00:58.2]} 23. Rg1 {[%clk 0:00:29]} 23... Ne4
{[%clk 0:00:49.5]} 24. Ke2 {[%clk 0:00:17.4]} 24... Kh7 {[%clk 0:00:38.9]} 25.
f3 {[%clk 0:00:17.3]} 25... Nf6 {[%clk 0:00:37]} 26. Rg3 {[%clk 0:00:15.5]}
26... Rh8 {[%clk 0:00:33.9]} 27. Rxh3+ {[%clk 0:00:14.9]} 27... Nh5 {[%clk
0:00:29.5]} 28. Rxh5+ {[%clk 0:00:09.3]} 28... gxh5 {[%clk 0:00:28.6]} 29. Bxf5+
{[%clk 0:00:09.8]} 29... Kg8 {[%clk 0:00:28.1]} 30. Rg1+ {[%clk 0:00:09.8]} 1-0

[Event "*** Titled Tuesday Blitz"]
[Site "Chess.com"]
[Date "2020.11.24"]
[Round "8"]
[White "machupichu10"]
[Black "maximnovik"]
[Result "1-0"]
[WhiteElo "2763"]
[BlackElo "2542"]
[TimeControl "180+1"]
[EndTime "11:45:33 PST"]
[Termination "machupichu10 won by resignation"]

1. d4 {[%clk 0:03:00.9]} 1... Nf6 {[%clk 0:02:35.9]} 2. Nf3 {[%clk 0:03:01]}
2... g6 {[%clk 0:02:35.5]} 3. Bf4 {[%clk 0:03:00.2]} 3... Bg7 {[%clk 0:02:35.9]}
4. h3 {[%clk 0:03:00.5]} 4... O-O {[%clk 0:02:36.3]} 5. e3 {[%clk 0:03:00.3]}
5... c5 {[%clk 0:02:36.8]} 6. c3 {[%clk 0:03:00.7]} 6... d6 {[%clk 0:02:36.4]}
7. Nbd2 {[%clk 0:03:00.7]} 7... cxd4 {[%clk 0:02:34.9]} 8. exd4 {[%clk
0:02:42.1]} 8... e5 {[%clk 0:02:34.1]} 9. dxe5 {[%clk 0:02:42.2]} 9... dxe5
{[%clk 0:02:33]} 10. Bxe5 {[%clk 0:02:42.5]} 10... Nc6 {[%clk 0:02:16.1]} 11.
Bxf6 {[%clk 0:02:40.8]} 11... Bxf6 {[%clk 0:02:03.2]} 12. Be2 {[%clk 0:02:40.7]}
12... Qb6 {[%clk 0:02:01.3]} 13. Qb3 {[%clk 0:02:26.3]} 13... Re8 {[%clk
0:01:57.7]} 14. Qxb6 {[%clk 0:02:26]} 14... axb6 {[%clk 0:01:57.2]} 15. Kf1
{[%clk 0:02:26.5]} 15... Be6 {[%clk 0:01:37.8]} 16. a3 {[%clk 0:02:25.6]} 16...
Rad8 {[%clk 0:01:31.6]} 17. Re1 {[%clk 0:02:19.4]} 17... Ne5 {[%clk 0:01:23.4]}
18. Bb5 {[%clk 0:02:14.5]} 18... Re7 {[%clk 0:01:10.5]} 19. Ne4 {[%clk
0:01:04.9]} 19... Nxf3 {[%clk 0:01:07.6]} 20. Nxf6+ {[%clk 0:01:04.1]} 20... Kg7
{[%clk 0:01:06.9]} 21. Nh5+ {[%clk 0:00:48.5]} 21... gxh5 {[%clk 0:01:06.2]} 22.
gxf3 {[%clk 0:00:48.8]} 22... Rd2 {[%clk 0:00:57.9]} 23. Re2 {[%clk 0:00:47.7]}
23... Rd5 {[%clk 0:00:49.2]} 24. a4 {[%clk 0:00:45.6]} 24... Rxb5 {[%clk
0:00:48.4]} 25. Rxe6 {[%clk 0:00:44.1]} 25... Rxe6 {[%clk 0:00:42.5]} 26. axb5
{[%clk 0:00:44.6]} 26... Kf6 {[%clk 0:00:29.6]} 27. Rg1 {[%clk 0:00:42.6]} 27...
Re5 {[%clk 0:00:26.5]} 28. c4 {[%clk 0:00:42]} 28... Rf5 {[%clk 0:00:24.9]} 29.
Ke2 {[%clk 0:00:42.1]} 29... Rf4 {[%clk 0:00:24.9]} 30. b3 {[%clk 0:00:42]}
30... Rh4 {[%clk 0:00:24.9]} 31. Rg3 {[%clk 0:00:42.3]} 31... Rd4 {[%clk
0:00:19.9]} 32. Rg8 {[%clk 0:00:41.9]} 32... Rd7 {[%clk 0:00:16.1]} 33. Ke3
{[%clk 0:00:36.7]} 33... Kf5 {[%clk 0:00:15.4]} 34. f4 {[%clk 0:00:32.4]} 34...
Re7+ {[%clk 0:00:14.6]} 35. Kf3 {[%clk 0:00:32.4]} 35... Re4 {[%clk 0:00:14.2]}
36. Rg5+ {[%clk 0:00:32.4]} 1-0

[Event "*** Titled Tuesday Blitz"]
[Site "Chess.com"]
[Date "2020.11.24"]
[Round "8"]
[White "Zarikovs1999"]
[Black "rududuyk"]
[Result "1-0"]
[WhiteElo "2386"]
[BlackElo "2185"]
[TimeControl "180+1"]
[EndTime "11:45:35 PST"]
[Termination "Zarikovs1999 won by resignation"]

1. e4 {[%clk 0:03:00.9]} 1... e6 {[%clk 0:03:00.1]} 2. d4 {[%clk 0:03:00.1]}
2... d5 {[%clk 0:03:00.5]} 3. Nc3 {[%clk 0:03:01]} 3... Bb4 {[%clk 0:02:59.5]}
4. e5 {[%clk 0:03:01]} 4... c5 {[%clk 0:02:59.6]} 5. a3 {[%clk 0:03:01.2]} 5...
Bxc3+ {[%clk 0:03:00]} 6. bxc3 {[%clk 0:03:01.7]} 6... Ne7 {[%clk 0:03:00.2]} 7.
Qg4 {[%clk 0:02:59.5]} 7... cxd4 {[%clk 0:02:59.7]} 8. Qxg7 {[%clk 0:02:56.3]}
8... Rg8 {[%clk 0:02:59.8]} 9. Qxh7 {[%clk 0:02:56.7]} 9... Qc7 {[%clk
0:02:58.6]} 10. Ne2 {[%clk 0:02:15.6]} 10... Nbc6 {[%clk 0:02:55.4]} 11. f4
{[%clk 0:02:16]} 11... dxc3 {[%clk 0:02:52.3]} 12. h4 {[%clk 0:02:11.1]} 12...
Bd7 {[%clk 0:02:29.5]} 13. h5 {[%clk 0:02:07.2]} 13... O-O-O {[%clk 0:02:24.8]}
14. Qd3 {[%clk 0:02:07.7]} 14... Nf5 {[%clk 0:02:11.6]} 15. Rb1 {[%clk
0:02:01.6]} 15... d4 {[%clk 0:02:04.1]} 16. Rg1 {[%clk 0:02:01.1]} 16... Rg4
{[%clk 0:01:10.9]} 17. g3 {[%clk 0:01:50.2]} 17... Nxe5 {[%clk 0:01:08.8]} 18.
fxe5 {[%clk 0:01:45.1]} 18... Qxe5 {[%clk 0:01:07.2]} 19. Bg2 {[%clk 0:01:41.7]}
19... Bc6 {[%clk 0:01:02.1]} 20. Bxc6 {[%clk 0:01:38.1]} 20... bxc6 {[%clk
0:01:03]} 21. Qa6+ {[%clk 0:01:27.4]} 21... Kd7 {[%clk 0:01:03.2]} 22. Rb7+
{[%clk 0:01:22.6]} 22... Kd6 {[%clk 0:01:02.6]} 23. Bf4 {[%clk 0:01:20.4]} 23...
Rxf4 {[%clk 0:01:01.5]} 24. gxf4 {[%clk 0:01:21.3]} 24... Qe3 {[%clk 0:01:00.2]}
25. Qd3 {[%clk 0:01:06.9]} 25... c5 {[%clk 0:00:51.4]} 26. Qxe3 {[%clk
0:00:53.1]} 26... Nxe3 {[%clk 0:00:52.3]} 27. h6 {[%clk 0:00:49.1]} 27... Nxc2+
{[%clk 0:00:51.9]} 28. Kd1 {[%clk 0:00:48.9]} 28... Ne3+ {[%clk 0:00:51.6]} 29.
Kc1 {[%clk 0:00:47.4]} 29... Rh8 {[%clk 0:00:48.2]} 30. Rh1 {[%clk 0:00:46.3]}
30... c2 {[%clk 0:00:45.7]} 31. h7 {[%clk 0:00:44.1]} 31... d3 {[%clk 0:00:44]}
32. Nc3 {[%clk 0:00:41.9]} 32... Nd5 {[%clk 0:00:29.9]} 33. Ne4+ {[%clk
0:00:39]} 33... Kc6 {[%clk 0:00:29]} 34. Rxf7 {[%clk 0:00:39.9]} 34... c4 {[%clk
0:00:28.3]} 35. Rg7 {[%clk 0:00:37.7]} 35... c3 {[%clk 0:00:26.7]} 36. Rg8
{[%clk 0:00:34.4]} 36... Rxh7 {[%clk 0:00:26.8]} 37. Rxh7 {[%clk 0:00:33.7]}
37... Ne3 {[%clk 0:00:27.1]} 38. Nxc3 {[%clk 0:00:31.2]} 38... Nc4 {[%clk
0:00:17.9]} 39. Rc8+ {[%clk 0:00:30.6]} 39... Kd6 {[%clk 0:00:16.9]} 40. Rxc4
{[%clk 0:00:31.4]} 1-0

[Event "*** Titled Tuesday Blitz"]
[Site "Chess.com"]
[Date "2020.11.24"]
[Round "8"]
[White "Marina_Chess_Rus"]
[Black "Unknown_IM"]
[Result "1/2-1/2"]
[WhiteElo "2294"]
[BlackElo "2380"]
[TimeControl "180+1"]
[EndTime "11:45:37 PST"]
[Termination "Game drawn - insufficient material"]

1. d4 {[%clk 0:03:00.9]} 1... d5 {[%clk 0:02:59]} 2. Nf3 {[%clk 0:03:00.3]} 2...
c6 {[%clk 0:02:58.9]} 3. g3 {[%clk 0:02:54.9]} 3... Nf6 {[%clk 0:02:59.2]} 4.
Bg2 {[%clk 0:02:55.1]} 4... g6 {[%clk 0:02:59.7]} 5. O-O {[%clk 0:02:54.9]} 5...
Bg7 {[%clk 0:02:58.9]} 6. c4 {[%clk 0:02:52.2]} 6... O-O {[%clk 0:02:58.7]} 7.
Nc3 {[%clk 0:02:51.8]} 7... Be6 {[%clk 0:02:55.8]} 8. cxd5 {[%clk 0:02:50.8]}
8... cxd5 {[%clk 0:02:55.4]} 9. Bf4 {[%clk 0:02:50.6]} 9... Nc6 {[%clk
0:02:54.7]} 10. Rc1 {[%clk 0:02:50.7]} 10... Rc8 {[%clk 0:02:53.6]} 11. Na4
{[%clk 0:02:37.7]} 11... Ne4 {[%clk 0:02:47.6]} 12. Nc5 {[%clk 0:02:34.4]} 12...
Nxc5 {[%clk 0:02:46.9]} 13. Rxc5 {[%clk 0:02:04]} 13... Qb6 {[%clk 0:02:46.3]}
14. e3 {[%clk 0:01:43]} 14... Qxb2 {[%clk 0:02:43.8]} 15. Qa4 {[%clk 0:01:25.9]}
15... Qb4 {[%clk 0:02:29.9]} 16. Qxb4 {[%clk 0:01:19.3]} 16... Nxb4 {[%clk
0:02:30.8]} 17. Rb5 {[%clk 0:01:19.3]} 17... Nxa2 {[%clk 0:02:24.4]} 18. Rxb7
{[%clk 0:01:19.3]} 18... a5 {[%clk 0:02:19.9]} 19. Rxe7 {[%clk 0:01:05.3]} 19...
Nc3 {[%clk 0:02:18]} 20. Ra7 {[%clk 0:01:02]} 20... Ra8 {[%clk 0:02:14.8]} 21.
Rxa8 {[%clk 0:01:00.4]} 21... Rxa8 {[%clk 0:02:15.7]} 22. Ra1 {[%clk 0:01:00.3]}
22... Ne2+ {[%clk 0:02:12.9]} 23. Kf1 {[%clk 0:00:59.8]} 23... Nxf4 {[%clk
0:02:12.7]} 24. gxf4 {[%clk 0:00:59.9]} 24... a4 {[%clk 0:02:12.5]} 25. Nd2
{[%clk 0:00:59.6]} 25... a3 {[%clk 0:02:10.8]} 26. Ra2 {[%clk 0:00:58.4]} 26...
Bf8 {[%clk 0:02:09.8]} 27. Ke2 {[%clk 0:00:57.5]} 27... Bb4 {[%clk 0:02:02.4]}
28. Kd1 {[%clk 0:00:47]} 28... Ra5 {[%clk 0:01:57.7]} 29. Nb3 {[%clk 0:00:44.4]}
29... Ra6 {[%clk 0:01:51.9]} 30. Na1 {[%clk 0:00:40.2]} 30... Bf5 {[%clk
0:01:48.4]} 31. Nc2 {[%clk 0:00:33]} 31... Bd6 {[%clk 0:01:35.9]} 32. Bxd5
{[%clk 0:00:31.8]} 32... Ra5 {[%clk 0:01:28.6]} 33. Bc4 {[%clk 0:00:29.7]} 33...
h6 {[%clk 0:01:20.7]} 34. Kd2 {[%clk 0:00:29.4]} 34... g5 {[%clk 0:01:19.9]} 35.
fxg5 {[%clk 0:00:27.1]} 35... hxg5 {[%clk 0:01:19.5]} 36. Kc3 {[%clk 0:00:26.8]}
36... Bxc2 {[%clk 0:01:17.1]} 37. Kxc2 {[%clk 0:00:22.1]} 37... Bxh2 {[%clk
0:01:17.1]} 38. Kb3 {[%clk 0:00:21.3]} 38... Bd6 {[%clk 0:01:15.3]} 39. f4
{[%clk 0:00:19.5]} 39... gxf4 {[%clk 0:01:14.6]} 40. exf4 {[%clk 0:00:19.4]}
40... Bxf4 {[%clk 0:01:13]} 41. Rxa3 {[%clk 0:00:19.2]} 41... Rxa3+ {[%clk
0:01:11.2]} 42. Kxa3 {[%clk 0:00:19.1]} 42... Be3 {[%clk 0:01:11.6]} 43. Bxf7+
{[%clk 0:00:17.2]} 43... Kxf7 {[%clk 0:01:09.2]} 44. Kb4 {[%clk 0:00:17.4]}
44... Ke6 {[%clk 0:01:08.6]} 45. Kc4 {[%clk 0:00:17.7]} 45... Bf4 {[%clk
0:01:08.1]} 46. Kd3 {[%clk 0:00:18]} 46... Bd6 {[%clk 0:01:08.6]} 47. Ke4 {[%clk
0:00:18.3]} 47... Ke7 {[%clk 0:01:09]} 48. d5 {[%clk 0:00:18.8]} 48... Kd7
{[%clk 0:01:09.9]} 49. Kd4 {[%clk 0:00:19.3]} 49... Ke7 {[%clk 0:01:09.9]} 50.
Kc4 {[%clk 0:00:19.9]} 50... Kf6 {[%clk 0:01:10.2]} 51. Kd4 {[%clk 0:00:20.4]}
51... Kf5 {[%clk 0:01:10.4]} 52. Kc4 {[%clk 0:00:21]} 52... Ke4 {[%clk
0:01:10.8]} 53. Kb5 {[%clk 0:00:21.6]} 53... Kxd5 {[%clk 0:01:10.2]} 1/2-1/2

[Event "*** Titled Tuesday Blitz"]
[Site "Chess.com"]
[Date "2020.11.24"]
[Round "8"]
[White "ChainsOfFantasia"]
[Black "Geller_Jakov"]
[Result "0-1"]
[WhiteElo "2477"]
[BlackElo "2631"]
[TimeControl "180+1"]
[EndTime "11:45:38 PST"]
[Termination "Geller_Jakov won by resignation"]

1. d4 {[%clk 0:03:00.9]} 1... Nf6 {[%clk 0:02:58.4]} 2. Nf3 {[%clk 0:03:01.3]}
2... d5 {[%clk 0:02:58.3]} 3. c4 {[%clk 0:03:01.4]} 3... e6 {[%clk 0:02:58.6]}
4. g3 {[%clk 0:03:01.6]} 4... dxc4 {[%clk 0:02:55]} 5. Bg2 {[%clk 0:03:02]} 5...
c6 {[%clk 0:02:55.5]} 6. O-O {[%clk 0:03:01.1]} 6... b5 {[%clk 0:02:55.4]} 7. b3
{[%clk 0:02:59.5]} 7... cxb3 {[%clk 0:02:54.9]} 8. axb3 {[%clk 0:03:00.1]} 8...
Bb7 {[%clk 0:02:54.5]} 9. Qc2 {[%clk 0:02:59.7]} 9... Nbd7 {[%clk 0:02:54.1]}
10. Rd1 {[%clk 0:02:42.8]} 10... c5 {[%clk 0:02:37.1]} 11. dxc5 {[%clk
0:02:02.7]} 11... Bxc5 {[%clk 0:02:29]} 12. Ne5 {[%clk 0:01:50.9]} 12... Bxg2
{[%clk 0:02:23]} 13. Kxg2 {[%clk 0:01:50]} 13... Qc8 {[%clk 0:01:57.6]} 14. Nxd7
{[%clk 0:01:43]} 14... Nxd7 {[%clk 0:01:58.5]} 15. Qd3 {[%clk 0:01:38.2]} 15...
Qc6+ {[%clk 0:01:57.3]} 16. f3 {[%clk 0:01:36.2]} 16... Rd8 {[%clk 0:01:48.6]}
17. Qc3 {[%clk 0:01:32.8]} 17... Qc7 {[%clk 0:00:46.2]} 18. Qxg7 {[%clk
0:01:30.6]} 18... Qe5 {[%clk 0:00:46.2]} 19. Qxe5 {[%clk 0:01:23.1]} 19... Nxe5
{[%clk 0:00:47.1]} 20. Rxd8+ {[%clk 0:01:22.1]} 20... Kxd8 {[%clk 0:00:48]} 21.
Bb2 {[%clk 0:01:22.2]} 21... f6 {[%clk 0:00:48.3]} 22. Ra5 {[%clk 0:01:10.2]}
22... Kc7 {[%clk 0:00:44.1]} 23. Rxb5 {[%clk 0:01:00.2]} 23... Kc6 {[%clk
0:00:44.4]} 24. Ra5 {[%clk 0:00:55.8]} 24... Rd8 {[%clk 0:00:43.3]} 25. Bxe5
{[%clk 0:00:46.7]} 25... fxe5 {[%clk 0:00:42.9]} 26. Ra6+ {[%clk 0:00:43.2]}
26... Bb6 {[%clk 0:00:38.5]} 27. Ra2 {[%clk 0:00:43.6]} 27... Kc5 {[%clk
0:00:32.5]} 28. Ra4 {[%clk 0:00:37.7]} 28... Rd4 {[%clk 0:00:25.3]} 29. Ra2
{[%clk 0:00:28.2]} 29... Kb4 {[%clk 0:00:23.1]} 30. Rb2 {[%clk 0:00:22.4]} 30...
Rd1 {[%clk 0:00:20.5]} 31. h4 {[%clk 0:00:19.4]} 31... Bd4 {[%clk 0:00:20]} 32.
Ra2 {[%clk 0:00:15.7]} 32... Rxb1 {[%clk 0:00:19.8]} 0-1

[Event "*** Titled Tuesday Blitz"]
[Site "Chess.com"]
[Date "2020.11.24"]
[Round "8"]
[White "Sinquefield"]
[Black "elcandado"]
[Result "1-0"]
[WhiteElo "2499"]
[BlackElo "2661"]
[TimeControl "180+1"]
[EndTime "11:45:43 PST"]
[Termination "Sinquefield won by resignation"]

1. e4 {[%clk 0:03:00.9]} 1... d6 {[%clk 0:02:59.8]} 2. d4 {[%clk 0:03:00.3]}
2... Nf6 {[%clk 0:03:00.1]} 3. Nc3 {[%clk 0:03:00]} 3... e5 {[%clk 0:03:00.2]}
4. Nge2 {[%clk 0:02:58]} 4... Be7 {[%clk 0:02:59.6]} 5. f3 {[%clk 0:02:58]} 5...
h5 {[%clk 0:02:58.4]} 6. Be3 {[%clk 0:02:57.9]} 6... c6 {[%clk 0:02:58.4]} 7.
Qd2 {[%clk 0:02:58.2]} 7... Nbd7 {[%clk 0:02:56.3]} 8. O-O-O {[%clk 0:02:55.4]}
8... b5 {[%clk 0:02:55.3]} 9. h3 {[%clk 0:02:44.4]} 9... a6 {[%clk 0:02:45.5]}
10. Ng3 {[%clk 0:02:44.1]} 10... g6 {[%clk 0:02:44.2]} 11. Kb1 {[%clk
0:02:41.8]} 11... Bb7 {[%clk 0:02:42.2]} 12. f4 {[%clk 0:02:14.1]} 12... h4
{[%clk 0:02:23.9]} 13. Nge2 {[%clk 0:02:06.3]} 13... exd4 {[%clk 0:02:21.1]} 14.
Nxd4 {[%clk 0:01:57.6]} 14... c5 {[%clk 0:02:20.9]} 15. Nf3 {[%clk 0:01:54.7]}
15... Nxe4 {[%clk 0:02:14.8]} 16. Nxe4 {[%clk 0:01:53.3]} 16... Bxe4 {[%clk
0:02:15.1]} 17. Bd3 {[%clk 0:01:53.7]} 17... Bb7 {[%clk 0:02:06.9]} 18. f5
{[%clk 0:01:51.9]} 18... c4 {[%clk 0:01:53.5]} 19. fxg6 {[%clk 0:01:44.6]} 19...
cxd3 {[%clk 0:01:49.9]} 20. gxf7+ {[%clk 0:01:44.4]} 20... Kxf7 {[%clk
0:01:43.9]} 21. Bd4 {[%clk 0:01:35.2]} 21... Bf6 {[%clk 0:01:39.4]} 22. Qxd3
{[%clk 0:01:33.1]} 22... Ne5 {[%clk 0:01:26.9]} 23. Qb3+ {[%clk 0:01:27.1]}
23... Nc4 {[%clk 0:01:15.4]} 24. Rhf1 {[%clk 0:01:25.1]} 24... Bxf3 {[%clk
0:00:55.3]} 25. Rxf3 {[%clk 0:01:23.6]} 25... Rh6 {[%clk 0:00:53.9]} 26. Rdf1
{[%clk 0:01:21.9]} 26... Kg7 {[%clk 0:00:50.1]} 27. Qc3 {[%clk 0:01:20.2]} 27...
Ne5 {[%clk 0:00:44.8]} 28. Rf4 {[%clk 0:01:13.9]} 28... Rg6 {[%clk 0:00:42.6]}
29. Qe1 {[%clk 0:00:57.4]} 29... Qe7 {[%clk 0:00:37.5]} 30. Rf5 {[%clk
0:00:54.2]} 30... Rh8 {[%clk 0:00:34.2]} 31. Qe4 {[%clk 0:00:53.6]} 31... Re8
{[%clk 0:00:26.9]} 32. Qd5 {[%clk 0:00:52]} 32... Nd7 {[%clk 0:00:24.8]} 33. a3
{[%clk 0:00:43.4]} 33... Bxd4 {[%clk 0:00:23.9]} 34. Rf7+ {[%clk 0:00:43.1]}
34... Kh6 {[%clk 0:00:22.2]} 35. Rxe7 {[%clk 0:00:41]} 35... Rxe7 {[%clk
0:00:22.1]} 36. Qxd4 {[%clk 0:00:41.1]} 36... Nf6 {[%clk 0:00:18.1]} 37. Qxh4+
{[%clk 0:00:38.6]} 37... Kg7 {[%clk 0:00:17.7]} 38. Re1 {[%clk 0:00:38.1]} 38...
Rf7 {[%clk 0:00:16.8]} 39. Re6 {[%clk 0:00:35.8]} 39... Rxg2 {[%clk 0:00:16.1]}
40. Rxd6 {[%clk 0:00:35.6]} 40... Re7 {[%clk 0:00:13.3]} 41. Qxf6+ {[%clk
0:00:34.8]} 1-0

[Event "*** Titled Tuesday Blitz"]
[Site "Chess.com"]
[Date "2020.11.24"]
[Round "8"]
[White "Road2GM3000"]
[Black "Nils_03"]
[Result "0-1"]
[WhiteElo "2020"]
[BlackElo "2245"]
[TimeControl "180+1"]
[EndTime "11:45:43 PST"]
[Termination "Nils_03 won by resignation"]

1. d4 {[%clk 0:02:59.4]} 1... d5 {[%clk 0:02:58.1]} 2. c4 {[%clk 0:02:59.9]}
2... e6 {[%clk 0:02:58.2]} 3. Nc3 {[%clk 0:03:00.4]} 3... c6 {[%clk 0:02:59.1]}
4. cxd5 {[%clk 0:03:00.7]} 4... exd5 {[%clk 0:02:59.2]} 5. Nf3 {[%clk
0:03:01.6]} 5... Nf6 {[%clk 0:02:59]} 6. Bg5 {[%clk 0:03:02.3]} 6... h6 {[%clk
0:02:56.7]} 7. Bh4 {[%clk 0:03:02.4]} 7... Bf5 {[%clk 0:02:56.5]} 8. e3 {[%clk
0:03:02.5]} 8... Be7 {[%clk 0:02:53.7]} 9. Bd3 {[%clk 0:03:03]} 9... Bxd3 {[%clk
0:02:53.7]} 10. Qxd3 {[%clk 0:03:03.9]} 10... O-O {[%clk 0:02:53.9]} 11. O-O
{[%clk 0:03:04.4]} 11... Nbd7 {[%clk 0:02:53.4]} 12. Ne5 {[%clk 0:03:03.9]}
12... Re8 {[%clk 0:02:46.4]} 13. f4 {[%clk 0:03:02.3]} 13... c5 {[%clk
0:02:37.3]} 14. Nxd7 {[%clk 0:02:55]} 14... Qxd7 {[%clk 0:02:35.8]} 15. Bxf6
{[%clk 0:02:53.3]} 15... c4 {[%clk 0:02:29.4]} 16. Qd2 {[%clk 0:02:43]} 16...
Bxf6 {[%clk 0:02:29.2]} 17. Kh1 {[%clk 0:02:26.9]} 17... Re6 {[%clk 0:02:25.2]}
18. Rae1 {[%clk 0:02:22.1]} 18... Rae8 {[%clk 0:02:25]} 19. Rg1 {[%clk
0:02:15.1]} 19... b5 {[%clk 0:02:18.8]} 20. a3 {[%clk 0:02:13.2]} 20... a5
{[%clk 0:02:18.5]} 21. g4 {[%clk 0:02:12.9]} 21... Bh4 {[%clk 0:02:18.3]} 22.
Re2 {[%clk 0:02:09.8]} 22... b4 {[%clk 0:02:17.2]} 23. Nd1 {[%clk 0:02:06.5]}
23... Qb5 {[%clk 0:01:59.9]} 24. g5 {[%clk 0:01:56.5]} 24... hxg5 {[%clk
0:01:57.9]} 25. fxg5 {[%clk 0:01:57.4]} 25... Rg6 {[%clk 0:01:48.8]} 26. Reg2
{[%clk 0:01:55.5]} 26... bxa3 {[%clk 0:01:33.8]} 27. bxa3 {[%clk 0:01:53]} 27...
Re4 {[%clk 0:01:22.1]} 28. Nc3 {[%clk 0:01:46.9]} 28... Qb3 {[%clk 0:01:15.2]}
29. Nxe4 {[%clk 0:01:45.4]} 29... dxe4 {[%clk 0:01:16.1]} 30. Rg4 {[%clk
0:00:49.7]} 30... c3 {[%clk 0:01:15.7]} 31. Qc1 {[%clk 0:00:32.8]} 31... Bf2
{[%clk 0:01:14.1]} 32. Rf1 {[%clk 0:00:31.6]} 32... c2 {[%clk 0:01:02.6]} 33.
Rxf2 {[%clk 0:00:29.2]} 33... Rc6 {[%clk 0:01:01.6]} 34. Rgg2 {[%clk 0:00:28.2]}
34... Qb1 {[%clk 0:00:57.7]} 35. Rg1 {[%clk 0:00:28.3]} 35... Qb3 {[%clk
0:00:52.1]} 36. g6 {[%clk 0:00:28.2]} 36... fxg6 {[%clk 0:00:49.6]} 37. Qf1
{[%clk 0:00:26.1]} 37... Qxe3 {[%clk 0:00:25.7]} 38. Rf8+ {[%clk 0:00:23]} 38...
Kh7 {[%clk 0:00:25.5]} 39. Qh3+ {[%clk 0:00:23.5]} 39... Qxh3 {[%clk 0:00:24.7]}
0-1